fUSD/lending_fUSD_20260121
["ID","MTS","AMOUNT","RATE_DAILY","PERIOD"]
[402927736,1768988928431,-500.0,0.00043287,120]
[402927737,1768988928493,-500.0,0.00043287,120]
[402927738,1768988928550,-500.0,0.00043287,120]
[402927739,1768988928613,-512.9,0.00043287,120]
[402927740,1768988928673,-500.0,0.00043287,120]
[402927741,1768988928735,-500.0,0.00043287,120]
[402927742,1768988928794,-611.76,0.00043287,120]
[402927743,1768988928854,-500.0,0.00043287,120]
[402927744,1768988928916,-500.76,0.00043287,120]
[402927745,1768988928980,-500.0,0.00043287,120]
[402927746,1768988929043,-500.0,0.00043287,120]
[402927747,1768988929105,-1236.19,0.00043287,120]
[402927748,1768988929171,-500.0,0.00043287,120]
[402927749,1768988929233,-500.0,0.00043287,120]
[402927750,1768988929295,-500.0,0.00043287,120]
[402927751,1768988929361,-500.0,0.00043287,120]
[402927752,1768988929426,-651.71,0.00043287,120]
[402927753,1768988929488,-500.0,0.00043287,120]
[402927754,1768988929552,-500.0,0.00043287,120]
[402927755,1768988929614,-550.67,0.00043287,120]
[402927756,1768988929684,-500.0,0.00043287,120]
[402927757,1768988929747,-746.34,0.00043287,120]
[402927758,1768988929807,-500.0,0.00043287,120]
[402927759,1768988929870,-500.0,0.00043287,120]
[402927760,1768988929944,-500.0,0.00043287,120]
[402927761,1768988930007,-500.0,0.00043287,120]
[402927762,1768988930070,-500.0,0.00043287,120]
[402927763,1768988930135,-500.0,0.00043287,120]
[402927764,1768988930198,-500.0,0.00043287,120]
[402927765,1768988930265,-150.0,0.00043288,60]
[402927766,1768988930328,-200.0,0.00043288,60]
[402927767,1768988930396,-172.80343081,0.00043288,120]
[402927768,1768988930461,-946.0,0.00043288,60]
[402927769,1768988930527,-200.49238854,0.00043288,60]
[402927770,1768988930592,-500.0,0.00043288,60]
[402927771,1768988930655,-500.0,0.00043288,60]
[402927772,1768988930719,-500.0,0.00043288,60]
[402927773,1768988930784,-736.0,0.00043288,60]
[402927774,1768988930848,-593.0,0.00043288,60]
[402927775,1768988930911,-500.0,0.00043288,60]
[402927776,1768988930976,-500.0,0.00043288,60]
[402927777,1768988931038,-500.0,0.00043288,60]
[402927778,1768988931100,-150.0,0.00043288,60]
[402927779,1768988931164,-421.0,0.00043288,60]
[402927780,1768988931227,-503.51325329,0.00043288,60]
[402927781,1768988931288,-500.0,0.00043288,60]
[402927782,1768988931365,-535.36099547,0.00043288,60]
[402927783,1768988931432,-600.0,0.00043288,120]
[402927784,1768988931501,-600.0,0.00043288,120]
[402927785,1768988931565,-150.0,0.00043342,60]
[402927786,1768988931626,-946.0,0.00043342,60]
[402927787,1768988931686,-500.0,0.00043342,60]
[402927788,1768988931748,-500.0,0.00043342,60]
[402927789,1768988931807,-500.0,0.00043342,60]
[402927790,1768988931867,-736.0,0.00043342,60]
[402927791,1768988931929,-593.0,0.00043342,60]
[402927792,1768988931990,-500.0,0.00043342,60]
[402927793,1768988932052,-500.0,0.00043342,60]
[402927794,1768988932112,-500.0,0.00043342,60]
[402927795,1768988932176,-242.53853878,0.00043342,60]
[402927796,1768988932239,-421.0,0.00043342,60]
[402927797,1768988932303,-500.0,0.00043342,60]
[402927798,1768988932368,-205.76176181,0.00043397,60]
[402927799,1768988932430,-946.0,0.00043397,60]
[402927800,1768988932490,-500.0,0.00043397,60]
[402927801,1768988932550,-500.0,0.00043397,60]
[402927802,1768988932611,-500.0,0.00043397,60]
[402927803,1768988932672,-736.0,0.00043397,60]
[402927804,1768988932733,-593.0,0.00043397,60]
[402927805,1768988932788,-505.87876924,0.00043397,60]
[402927806,1768988932844,-500.0,0.00043397,60]
[402927807,1768988932901,-500.0,0.00043397,60]
[402927808,1768988932963,-421.0,0.00043397,60]
[402927809,1768988933024,-540.19453195,0.00043397,60]
[402927810,1768988933080,-253.0,0.000434,42]
[402927811,1768988933144,-946.0,0.00043452,60]
[402927812,1768988933210,-500.0,0.00043452,60]
[402927813,1768988933270,-500.0,0.00043452,60]
[402927814,1768988933329,-422.78307317,0.00043452,60]
[402927815,1768988933649,-736.0,0.00043452,60]
[402927816,1768988933712,-593.0,0.00043452,60]
[402927817,1768988933772,-242.0,0.00043452,60]
[402927818,1768988933833,-381.58704903,0.00043452,60]
[402927819,1768988933895,-421.0,0.00043452,60]
[402927820,1768988933958,-5000.0,0.00043499,30]
[402927821,1768988934021,-5000.0,0.00043499,30]
[402927822,1768988934082,-800.0,0.000435,60]
[402927823,1768988934144,-1101.0,0.000435,30]
[402927824,1768988934208,-150.0,0.000435,30]
[402927825,1768988934268,-150.0,0.000435,30]
[402927826,1768988934329,-150.0,0.000435,30]
[402927827,1768988934390,-150.0,0.000435,30]
[402927828,1768988934453,-150.00000001,0.000435,30]
[402927829,1768988934523,-150.0,0.000435,30]
[402927830,1768988934592,-150.0,0.000435,30]
[402927831,1768988934660,-3787242.84174545,0.000435,120]
[402927832,1768988934724,-500.0,0.000435,60]
[402927833,1768988934785,-200.0,0.000435,120]
[402927834,1768988934844,-266.49683347,0.000435,120]
[402927835,1768988934904,-1264.0,0.000435,30]
[402927836,1768988934968,-1264.0,0.000435,30]
[402927837,1768988935032,-1264.0,0.000435,30]
[402927838,1768988935096,-1264.0,0.000435,30]
[402927839,1768988935156,-1264.0,0.000435,30]
[402927840,1768988935217,-1264.0,0.000435,30]
[402927841,1768988935277,-1264.0,0.000435,30]
[402927842,1768988935340,-1264.0,0.000435,30]
[402927843,1768988935400,-1264.0,0.000435,30]
[402927844,1768988935461,-1264.0,0.000435,30]
[402927845,1768988935525,-1264.0,0.000435,30]
[402927846,1768988935584,-1264.0,0.000435,30]
[402927847,1768988935644,-229.02719,0.000435,120]
[402927848,1768988935702,-229.02719,0.000435,120]
[402927849,1768988935760,-229.0272,0.000435,120]
[402927850,1768988935817,-988.0,0.000435,120]
[402927851,1768988935873,-279.0,0.000435,120]
[402927852,1768988935933,-952.0,0.000435,120]
[402927853,1768988935994,-1003.0,0.000435,120]
[402927854,1768988936054,-1171.18857925,0.000435,120]
[402927855,1768988936115,-939.0,0.000435,120]
[402927856,1768988936178,-946.0,0.00043507,60]
[402927857,1768988936241,-250.0,0.00043507,60]
[402927858,1768988936302,-500.0,0.00043507,60]
[402927859,1768988936362,-736.0,0.00043507,60]
[402927860,1768988936421,-593.0,0.00043507,60]
[402927861,1768988936483,-421.0,0.00043507,60]
[402927862,1768988936543,-250.64,0.00043507,120]
[402927863,1768988936601,-500.0,0.00043561,30]
[402927864,1768988936661,-233.44798845,0.00043561,120]
[402927865,1768988936720,-533.98,0.00043561,120]
[402927866,1768988936777,-574.02,0.00043561,120]
[402927867,1768988936835,-539.31,0.00043561,120]
[402927868,1768988936896,-579.91,0.00043561,120]
[402927869,1768988936957,-500.0,0.00043561,120]
[402927870,1768988937020,-500.0,0.00043561,120]
[402927871,1768988937079,-500.0,0.00043561,120]
[402927872,1768988937141,-512.9,0.00043561,120]
[402927873,1768988937206,-500.0,0.00043561,120]
[402927874,1768988937269,-500.0,0.00043561,120]
[402927875,1768988937328,-611.76,0.00043561,120]
[402927876,1768988937386,-500.0,0.00043561,120]
[402927877,1768988937441,-500.76,0.00043561,120]
[402927878,1768988937498,-229.38345532,0.00043561,120]
[402927879,1768988937559,-479.03184306,0.00043561,120]
[402927880,1768988937616,-1236.19,0.00043561,120]
[402927881,1768988937674,-500.0,0.00043561,120]
[402927882,1768988937731,-500.0,0.00043561,120]
[402927883,1768988937789,-500.0,0.00043561,120]
[402927884,1768988937845,-500.0,0.00043561,120]
[402927885,1768988937903,-651.71,0.00043561,120]
[402927886,1768988937962,-500.0,0.00043561,120]
[402927887,1768988938024,-500.0,0.00043561,120]
[402927888,1768988938084,-550.67,0.00043561,120]
[402927889,1768988938145,-376.42827806,0.00043561,120]
[402927890,1768988938208,-746.34,0.00043561,120]
[402927891,1768988938272,-500.0,0.00043561,120]
[402927892,1768988938336,-500.0,0.00043561,120]
[402927893,1768988938399,-500.0,0.00043561,120]
[402927894,1768988938462,-500.0,0.00043561,120]
[402927895,1768988938529,-323.99812697,0.00043561,120]
[402927896,1768988938590,-500.0,0.00043561,120]
[402927897,1768988938651,-196.22731826,0.00043561,120]
[402927898,1768988938711,-946.0,0.00043562,60]
[402927899,1768988938768,-500.0,0.00043562,60]
[402927900,1768988938824,-736.0,0.00043562,60]
[402927901,1768988938882,-593.0,0.00043562,60]
[402927902,1768988938942,-421.0,0.00043562,60]
[402927903,1768988939003,-600.0,0.00043562,120]
[402927904,1768988939063,-600.0,0.00043562,120]
[402927905,1768988939122,-433.0,0.00043605,30]
[402927906,1768988939183,-946.0,0.00043616,60]
[402927907,1768988939243,-209.64382423,0.00043616,60]
[402927908,1768988939303,-736.0,0.00043616,60]
[402927909,1768988939365,-593.0,0.00043616,60]
[402927910,1768988939571,-421.0,0.00043616,60]
[402927911,1768988939633,-2050.0,0.0004363,120]
[402927912,1768988939695,-612.34,0.00043638,120]
[402927913,1768988939757,-946.0,0.00043671,60]
[402927914,1768988939818,-736.0,0.00043671,60]
[402927915,1768988939878,-593.0,0.00043671,60]
[402927916,1768988939943,-421.0,0.00043671,60]
[402927917,1768988940006,-4165.83533577,0.0004369,120]
[402927918,1768988940068,-3467.21134705,0.000437,120]
[402927919,1768988940132,-912.77,0.000437,120]
[402927920,1768988940198,-338.801,0.000437,90]
[402927921,1768988940264,-946.0,0.00043726,60]
[402927922,1768988940324,-736.0,0.00043726,60]
[402927923,1768988940383,-593.0,0.00043726,60]
[402927924,1768988940443,-421.0,0.00043726,60]
[402927925,1768988940506,-612.34,0.00043738,120]
[402927926,1768988940568,-946.0,0.00043781,60]
[402927927,1768988940630,-736.0,0.00043781,60]
[402927928,1768988940694,-593.0,0.00043781,60]
[402927929,1768988940759,-421.0,0.00043781,60]
[402927930,1768988940816,-501.58460074,0.000438,30]
[402927931,1768988940871,-189.46909414,0.000438,30]
[402927932,1768988940932,-1301.1433783,0.000438,30]
[402927933,1768988940994,-1050.74,0.0004381,120]
[402927934,1768988941056,-308.39347931,0.00043835,30]
[402927935,1768988941131,-533.98,0.00043835,120]
[402927936,1768988941208,-574.02,0.00043835,120]
[402927937,1768988941270,-539.31,0.00043835,120]
[402927938,1768988941330,-579.91,0.00043835,120]
[402927939,1768988941392,-500.0,0.00043835,120]
[402927940,1768988941456,-244.58216805,0.00043835,120]
[402927941,1768988941519,-500.0,0.00043835,120]
[402927942,1768988941583,-512.9,0.00043835,120]
[402927943,1768988941647,-500.0,0.00043835,120]
[402927944,1768988941710,-500.0,0.00043835,120]
[402927945,1768988941773,-611.76,0.00043835,120]
[402927946,1768988941836,-500.0,0.00043835,120]
[402927947,1768988941900,-500.76,0.00043835,120]
[402927948,1768988941964,-1236.19,0.00043835,120]
[402927949,1768988942025,-500.0,0.00043835,120]
[402927950,1768988942083,-500.0,0.00043835,120]
[402927951,1768988942142,-500.0,0.00043835,120]
[402927952,1768988942203,-500.0,0.00043835,120]
[402927953,1768988942262,-651.71,0.00043835,120]
[402927954,1768988942322,-500.0,0.00043835,120]
[402927955,1768988942382,-500.0,0.00043835,120]
[402927956,1768988942453,-550.67,0.00043835,120]
[402927957,1768988942528,-746.34,0.00043835,120]
[402927958,1768988942589,-500.0,0.00043835,120]
[402927959,1768988942648,-500.0,0.00043835,120]
[402927960,1768988942709,-500.0,0.00043835,120]
[402927961,1768988942767,-500.0,0.00043835,120]
[402927962,1768988942827,-500.0,0.00043835,120]
[402927963,1768988942887,-946.0,0.00043836,60]
[402927964,1768988942952,-736.0,0.00043836,60]
[402927965,1768988943016,-593.0,0.00043836,60]
[402927966,1768988943079,-421.0,0.00043836,60]
[402927967,1768988943141,-600.0,0.00043836,120]
[402927968,1768988943205,-1000.0,0.00043836,32]
[402927969,1768988943270,-612.34,0.00043838,120]
[402927970,1768988943332,-150.0,0.00043877,120]
[402927971,1768988943396,-946.0,0.0004389,60]
[402927972,1768988943459,-736.0,0.0004389,60]
[402927973,1768988943527,-593.0,0.0004389,60]
[402927974,1768988943594,-421.0,0.0004389,60]
[402927975,1768988943662,-558.13,0.00043894,30]
[402927976,1768988943728,-156.14441485,0.000439,120]
[402927977,1768988943791,-171.0,0.000439,120]
[402927978,1768988943853,-151.0,0.000439,120]
[402927979,1768988943921,-150.0,0.00043901,120]
[402927980,1768988943987,-612.34,0.00043938,120]
[402927981,1768988944052,-946.0,0.00043945,60]
[402927982,1768988944117,-736.0,0.00043945,60]
[402927983,1768988944183,-593.0,0.00043945,60]
[402927984,1768988944248,-421.0,0.00043945,60]
[402927985,1768988944312,-9352.60311583,0.00043957,120]
[402927986,1768988944376,-1112.61516841,0.00043987,120]
[402927987,1768988944439,-946.0,0.00044,60]
[402927988,1768988944503,-736.0,0.00044,60]
[402927989,1768988944570,-593.0,0.00044,60]
[402927990,1768988944635,-421.0,0.00044,60]
[402927991,1768988944699,-10000.0,0.00044,30]
[402927992,1768988944761,-10000.0,0.00044,30]
[402927993,1768988944825,-10000.0,0.00044,30]
[402927994,1768988944890,-10000.0,0.00044,30]
[402927995,1768988944953,-10000.0,0.00044,30]
[402927996,1768988945018,-200.0,0.00044,120]
[402927997,1768988945082,-4404.50885378,0.00044,30]
[402927998,1768988945145,-200.0,0.00044,120]
[402927999,1768988945208,-12000.0,0.00044,30]
[402928000,1768988945273,-10000.0,0.00044,60]
[402928001,1768988945336,-2755.16820163,0.00044,120]
[402928002,1768988945403,-761.81744185,0.00044,120]
[402928003,1768988945476,-1822.74968539,0.00044,120]
[402928004,1768988945729,-200.0,0.00044,120]
[402928005,1768988945795,-153.13967208,0.00044,120]
[402928006,1768988945860,-4682.19108605,0.00044,120]
[402928007,1768988945927,-419.662484,0.00044,57]
[402928008,1768988945990,-433.0,0.00044032,30]
[402928009,1768988946056,-612.34,0.00044038,120]
[402928010,1768988946123,-800.0,0.00044048,60]
[402928011,1768988946187,-946.0,0.00044055,60]
[402928012,1768988946255,-736.0,0.00044055,60]
[402928013,1768988946319,-593.0,0.00044055,60]
[402928014,1768988946381,-421.0,0.00044055,60]
[402928015,1768988946445,-20000.0,0.00044082,120]
[402928016,1768988946508,-533.98,0.00044109,120]
[402928017,1768988946574,-574.02,0.00044109,120]
[402928018,1768988946637,-539.31,0.00044109,120]
[402928019,1768988946701,-579.91,0.00044109,120]
[402928020,1768988946765,-500.0,0.00044109,120]
[402928021,1768988946827,-500.0,0.00044109,120]
[402928022,1768988946891,-512.9,0.00044109,120]
[402928023,1768988946957,-323.61667735,0.00044109,120]
[402928024,1768988947021,-500.0,0.00044109,120]
[402928025,1768988947084,-611.76,0.00044109,120]
[402928026,1768988947154,-500.0,0.00044109,120]
[402928027,1768988947221,-500.76,0.00044109,120]
[402928028,1768988947288,-1236.19,0.00044109,120]
[402928029,1768988947353,-153.30495263,0.00044109,120]
[402928030,1768988947416,-507.76442776,0.00044109,120]
[402928031,1768988947483,-500.0,0.00044109,120]
[402928032,1768988947546,-500.0,0.00044109,120]
[402928033,1768988947612,-651.71,0.00044109,120]
[402928034,1768988947681,-500.0,0.00044109,120]
[402928035,1768988947745,-500.0,0.00044109,120]
[402928036,1768988947807,-550.67,0.00044109,120]
[402928037,1768988947870,-746.34,0.00044109,120]
[402928038,1768988947945,-500.0,0.00044109,120]
[402928039,1768988948026,-500.0,0.00044109,120]
[402928040,1768988948099,-500.0,0.00044109,120]
[402928041,1768988948167,-500.0,0.00044109,120]
[402928042,1768988948232,-500.0,0.00044109,120]
[402928043,1768988948301,-946.0,0.0004411,60]
[402928044,1768988948366,-736.0,0.0004411,60]
[402928045,1768988948433,-593.0,0.0004411,60]
[402928046,1768988948499,-421.0,0.0004411,60]
[402928047,1768988948565,-600.0,0.0004411,120]
[402928048,1768988948632,-612.34,0.00044138,120]
[402928049,1768988948698,-150.0,0.00044155,120]
[402928050,1768988948765,-946.0,0.00044164,60]
[402928051,1768988948833,-736.0,0.00044164,60]
[402928052,1768988948903,-593.0,0.00044164,60]
[402928053,1768988948970,-421.0,0.00044164,60]
[402928054,1768988949038,-946.0,0.00044219,60]
[402928055,1768988949105,-736.0,0.00044219,60]
[402928056,1768988949175,-593.0,0.00044219,60]
[402928057,1768988949243,-421.0,0.00044219,60]
[402928058,1768988949310,-612.34,0.00044238,120]
[402928059,1768988949385,-158.97729894,0.0004425,120]
[402928060,1768988949456,-946.0,0.00044274,60]
[402928061,1768988949523,-736.0,0.00044274,60]
[402928062,1768988949590,-593.0,0.00044274,60]
[402928063,1768988949654,-421.0,0.00044274,60]
[402928064,1768988949717,-946.0,0.00044329,60]
[402928065,1768988949780,-736.0,0.00044329,60]
[402928066,1768988949843,-593.0,0.00044329,60]
[402928067,1768988949907,-421.0,0.00044329,60]
[402928068,1768988949973,-612.34,0.00044338,120]
[402928069,1768988950037,-150.0,0.00044365,120]
[402928070,1768988950102,-533.98,0.00044383,120]
[402928071,1768988950166,-574.02,0.00044383,120]
[402928072,1768988950231,-539.31,0.00044383,120]
[402928073,1768988950293,-579.91,0.00044383,120]
[402928074,1768988950355,-500.0,0.00044383,120]
[402928075,1768988950419,-500.0,0.00044383,120]
[402928076,1768988950482,-512.9,0.00044383,120]
[402928077,1768988950544,-500.0,0.00044383,120]
[402928078,1768988950608,-611.76,0.00044383,120]
[402928079,1768988950669,-500.0,0.00044383,120]
[402928080,1768988950732,-500.76,0.00044383,120]
[402928081,1768988950794,-1236.19,0.00044383,120]
[402928082,1768988950855,-500.0,0.00044383,120]
[402928083,1768988950920,-651.71,0.00044383,120]
[402928084,1768988950984,-500.0,0.00044383,120]
[402928085,1768988951047,-500.0,0.00044383,120]
[402928086,1768988951111,-500.0,0.00044383,120]
[402928087,1768988951175,-550.67,0.00044383,120]
[402928088,1768988951240,-746.34,0.00044383,120]
[402928089,1768988951303,-500.0,0.00044383,120]
[402928090,1768988951367,-500.0,0.00044383,120]
[402928091,1768988951432,-500.0,0.00044383,120]
[402928092,1768988951498,-626.06115892,0.00044383,120]
[402928093,1768988951562,-500.0,0.00044383,120]
[402928094,1768988951628,-946.0,0.00044383,60]
[402928095,1768988951693,-736.0,0.00044383,60]
[402928096,1768988951759,-593.0,0.00044383,60]
[402928097,1768988951824,-421.0,0.00044383,60]
[402928098,1768988952066,-171.0,0.000444,120]
[402928099,1768988952159,-253.0,0.000444,46]
[402928100,1768988952227,-205.74,0.00044412,120]
[402928101,1768988952297,-959.0,0.00044438,60]
[402928102,1768988952364,-744.17802275,0.00044438,60]
[402928103,1768988952430,-616.2018649,0.00044438,60]
[402928104,1768988952494,-422.74170161,0.00044438,60]
[402928105,1768988952559,-612.34,0.00044438,120]
[402928106,1768988952624,-3159.22150153,0.000445,120]
[402928107,1768988952688,-151.0,0.000445,120]
[402928108,1768988952754,-612.34,0.00044538,120]
[402928109,1768988952817,-500.0,0.00044596,60]
[402928110,1768988952880,-200.0,0.00044633,120]
[402928111,1768988952946,-612.34,0.00044638,120]
[402928112,1768988953012,-533.98,0.00044657,120]
[402928113,1768988953075,-574.02,0.00044657,120]
[402928114,1768988953140,-539.31,0.00044657,120]
[402928115,1768988953203,-579.91,0.00044657,120]
[402928116,1768988953268,-500.0,0.00044657,120]
[402928117,1768988953332,-500.0,0.00044657,120]
[402928118,1768988953397,-512.9,0.00044657,120]
[402928119,1768988953463,-500.0,0.00044657,120]
[402928120,1768988953529,-611.76,0.00044657,120]
[402928121,1768988953593,-500.0,0.00044657,120]
[402928122,1768988953659,-500.76,0.00044657,120]
[402928123,1768988953729,-1236.19,0.00044657,120]
[402928124,1768988953797,-500.0,0.00044657,120]
[402928125,1768988953865,-651.71,0.00044657,120]
[402928126,1768988953934,-500.0,0.00044657,120]
[402928127,1768988954003,-500.0,0.00044657,120]
[402928128,1768988954071,-500.0,0.00044657,120]
[402928129,1768988954134,-550.67,0.00044657,120]
[402928130,1768988954200,-746.34,0.00044657,120]
[402928131,1768988954267,-500.0,0.00044657,120]
[402928132,1768988954334,-432.00430105,0.00044657,120]
[402928133,1768988954399,-500.0,0.00044657,120]
[402928134,1768988954469,-500.0,0.00044657,120]
[402928135,1768988954559,-612.34,0.00044738,120]
[402928136,1768988954633,-3004.14030077,0.000448,120]
[402928137,1768988954700,-612.34,0.00044838,120]
[402928138,1768988954764,-449262.32425739,0.00044889,60]
[402928139,1768988954829,-1335.16151127,0.0004489,120]
[402928140,1768988954892,-319860.55625439,0.000449,30]
[402928141,1768988954958,-5000.0,0.000449,120]
[402928142,1768988955025,-20056.9784013,0.000449,120]
[402928143,1768988955091,-533.98,0.00044931,120]
[402928144,1768988955155,-574.02,0.00044931,120]
[402928145,1768988955220,-539.31,0.00044931,120]
[402928146,1768988955284,-579.91,0.00044931,120]
[402928147,1768988955347,-500.0,0.00044931,120]
[402928148,1768988955411,-500.0,0.00044931,120]
[402928149,1768988955484,-512.9,0.00044931,120]
[402928150,1768988955552,-500.0,0.00044931,120]
[402928151,1768988955620,-611.76,0.00044931,120]
[402928152,1768988955690,-240.96656152,0.00044931,120]
[402928153,1768988955758,-500.76,0.00044931,120]
[402928154,1768988955821,-1236.19,0.00044931,120]
[402928155,1768988955885,-500.0,0.00044931,120]
[402928156,1768988955953,-651.71,0.00044931,120]
[402928157,1768988956019,-500.0,0.00044931,120]
[402928158,1768988956096,-500.0,0.00044931,120]
[402928159,1768988956177,-500.0,0.00044931,120]
[402928160,1768988956246,-550.67,0.00044931,120]
[402928161,1768988956307,-746.34,0.00044931,120]
[402928162,1768988956369,-161.30868121,0.00044931,120]
[402928163,1768988956431,-576.38130205,0.00044931,120]
[402928164,1768988956493,-541.00464043,0.00044931,120]
[402928165,1768988956555,-150.0,0.00044937,120]
[402928166,1768988956618,-612.34,0.00044938,120]
[402928167,1768988956682,-210.0,0.0004496,30]
[402928168,1768988956742,-1000.0,0.00044999,120]
[402928169,1768988956798,-2000.0,0.00045,120]
[402928170,1768988956854,-200.0,0.00045,120]
[402928171,1768988956913,-2500.0,0.00045,30]
[402928172,1768988956974,-150.0,0.00045,90]
[402928173,1768988957034,-395.80749036,0.00045,120]
[402928174,1768988957090,-550.29228503,0.00045,120]
[402928175,1768988957147,-1131.43739628,0.00045,32]
[402928176,1768988957204,-1018.02759088,0.00045,120]
[402928177,1768988957261,-2394.21269766,0.00045,120]
[402928178,1768988957317,-200.0,0.00045,120]
[402928179,1768988957372,-20561.56625067,0.00045,30]
[402928180,1768988957428,-4000.0,0.00045,60]
[402928181,1768988957485,-750.0,0.00045,50]
[402928182,1768988957540,-500.0,0.00045,120]
[402928183,1768988957597,-159.6,0.00045,85]
[402928184,1768988957652,-722.47375896,0.00045,120]
[402928185,1768988957706,-1709.10762567,0.00045,120]
[402928186,1768988957761,-675.49376783,0.00045,120]
[402928187,1768988957817,-200.0464621,0.00045,120]
[402928188,1768988957873,-11000.0,0.00045,30]
[402928189,1768988957932,-3203.86634381,0.00045,120]
[402928190,1768988957992,-975.57788693,0.00045,120]
[402928191,1768988958051,-36000.0,0.00045,60]
[402928192,1768988958127,-171.0,0.00045,120]
[402928193,1768988958324,-151.0,0.00045,120]
[402928194,1768988958393,-2537.92887603,0.00045,120]
[402928195,1768988958458,-795.58,0.00045,120]
[402928196,1768988958522,-35257.69506846,0.00045,30]
[402928197,1768988958587,-2000.0,0.00045,120]
[402928198,1768988958651,-725.0,0.00045,30]
[402928199,1768988958714,-25115.0,0.00045,120]
[402928200,1768988958776,-7881.72061265,0.00045,120]
[402928201,1768988958838,-200.0,0.00045,120]
[402928202,1768988958900,-1186.0,0.00045,120]
[402928203,1768988958965,-5151.0,0.00045,120]
[402928204,1768988959029,-3366.04,0.00045,30]
[402928205,1768988959093,-612.34,0.00045038,120]
[402928206,1768988959156,-12324.0,0.00045054,117]
[402928207,1768988959220,-421.13115543,0.000451,120]
[402928208,1768988959287,-2717.84839202,0.0004511,120]
[402928209,1768988959354,-11193.12373899,0.00045137,120]
[402928210,1768988959421,-612.34,0.00045138,120]
[402928211,1768988959489,-800.0,0.00045144,60]
[402928212,1768988959554,-533.98,0.00045205,120]
[402928213,1768988959618,-574.02,0.00045205,120]
[402928214,1768988959681,-539.31,0.00045205,120]
[402928215,1768988959743,-579.91,0.00045205,120]
[402928216,1768988959804,-500.0,0.00045205,120]
[402928217,1768988959864,-500.0,0.00045205,120]
[402928218,1768988959927,-512.9,0.00045205,120]
[402928219,1768988959990,-500.0,0.00045205,120]
[402928220,1768988960053,-611.76,0.00045205,120]
[402928221,1768988960117,-500.76,0.00045205,120]
[402928222,1768988960181,-1236.19,0.00045205,120]
[402928223,1768988960247,-426.72109643,0.00045205,120]
[402928224,1768988960311,-651.71,0.00045205,120]
[402928225,1768988960376,-500.0,0.00045205,120]
[402928226,1768988960439,-500.0,0.00045205,120]
[402928227,1768988960503,-500.0,0.00045205,120]
[402928228,1768988960566,-550.67,0.00045205,120]
[402928229,1768988960630,-746.34,0.00045205,120]
[402928230,1768988960692,-5011.7782,0.00045236,120]
[402928231,1768988960754,-612.34,0.00045238,120]
[402928232,1768988960815,-612.34,0.00045338,120]
[402928233,1768988960879,-152.0,0.0004538,120]
[402928234,1768988960944,-253.0,0.000454,50]
[402928235,1768988961010,-612.34,0.00045438,120]